Cogmind - Beta 14 @@@ ROGUE MODE // 2024.11.23 @ 21:43:43 Player: MarKhan Result: Destroyed by G-50 Soldier with Heavy Laser Performance ------------- Evolutions (5) 2500 Regions Visited (13) 2600 Robots Destroyed (224) 1120 Value Destroyed (11633) 11633 Prototype IDs (1) 20 Alien Tech Used (0) 0 Bonus (11598) 11598 TOTAL SCORE: 29471 Bonus ------- Triggered High Security 500 High Alert Combat Kills 4276 Follower Combat Kills 3543 Entered Garrisons 1000 Used RIF Installer 3000 Friendly Fire -721 Cogmind --------- Core Integrity 0/1000 Matter 135/300 Energy 81/100 System Corruption 16% Temperature Cool (18) Movement Core (50) Location -5/Factory Parts ------- > --- POWER (1) -------- (None) > --- PROPULSION (6) --- (None) > --- UTILITY (8) ------ Enhanced Optical Array Relay Coupler [NC] (36) > --- WEAPON (2) ------- (None) > --- INVENTORY (5) ---- Energy Well (350) Relay Coupler [Hunter] (26) Relay Coupler [Hunter] (25) Hypervelocity Gauss Cannon Remote Datajack Peak State ------------ > --- POWER ------------ Particle Reactor > --- PROPULSION ------- Medium Treads Improved Heavy Treads Improved Heavy Treads Biometal Medium Treads > --- UTILITY ---------- Cargo Storage Unit Recoil Nullifier Medium Insulated Plating Advanced Force Field Relay Coupler [Swarmer] Relay Coupler [Grunt] Relay Coupler [Hunter] > --- WEAPON ----------- Hypervelocity Gauss Cannon Hypervelocity Gauss Cannon > --- INVENTORY -------- Reinforced Deuterium Engine Improved Treads Advanced Heat Sink Energy Well Energy Well Compact Matter Pod Matter Compressor Enhanced Optical Array Recoil Nullifier Hardened Light Armor Plating EM Disruption Field Relay Coupler [NC] Relay Coupler [Swarmer] Relay Coupler [Cutter] Relay Coupler [Grunt] Relay Coupler [Brawler] Relay Coupler [Demolisher] Relay Coupler [Hunter] Relay Coupler [Hunter] System Restoration Module High-powered Tractor Beam Magnetic Acceleration Cannon Hypervelocity Gauss Cannon Hypervelocity Gauss Cannon Missile Launcher Smartbomb Launcher Datajack Remote Datajack Plasma Cutter [Rating: 103] Favorites ----------- Power Improved Deuterium Engine Engine Improved Deuterium Engine Power Core Nuclear Core Reactor Particle Reactor Propulsion Improved Heavy Treads Treads Improved Heavy Treads Utility Improved Targeting Computer Device Recoil Nullifier Storage Cargo Storage Unit Processor Improved Targeting Computer Hackware Relay Coupler [Grunt] Protection Medium Reactive Plating Weapon Mass Driver Energy Gun Medium Laser Energy Cannon Matter Neutralizer Ballistic Gun Minigun Ballistic Cannon Mass Driver Launcher Improved Grenade Launcher Special Weapon Remote Datajack Special Melee Weapon Datajack Build | -11 -10 -9 -8 -8 -7 -7 -7 -7 -6 -6 -6 -6 -5 ------- Run | Yrd Mat Mat Mat Gar Fac Gar Fac Gar Fac Gar Fac Gar Fac Slots Evolved 10 | . . 2 2 . 2 . . . 2 . . . 2 Power . | . . . . . . . . . . . . . . Propulsion 4 | . . . . . 1 . . . 1 . . . 2 Utility 6 | . . 2 2 . 1 . . . 1 . . . . Weapon . | . . . . . . . . . . . . . . Parts Attached 408 | 8 6 34 4 32 13 69 16 57 17 39 35 47 31 Power 24 | 1 1 3 . 2 1 1 2 3 2 2 2 3 1 Engine 13 | 1 1 3 . 1 . . 1 2 1 1 1 1 . Core 8 | . . . . 1 1 1 1 1 1 1 1 . . Reactor 3 | . . . . . . . . . . . . 2 1 Propulsion 44 | 2 . 6 . 7 5 7 2 . 4 2 2 3 4 Treads 44 | 2 . 6 . 7 5 7 2 . 4 2 2 3 4 Leg . | . . . . . . . . . . . . . . Wheel . | . . . . . . . . . . . . . . Hover . | . . . . . . . . . . . . . . Flight . | . . . . . . . . . . . . . . Utility 172 | 2 3 18 4 14 4 28 6 19 9 20 17 17 11 Device 82 | 1 2 10 3 9 3 11 3 1 4 15 9 6 5 Storage 7 | 1 1 . . 1 . 1 . 1 . 1 . 1 . Processor 11 | . . 3 . . . 2 1 1 1 1 . 1 1 Hackware 36 | . . . . . . 8 1 11 . . 5 7 4 Protection 36 | . . 5 1 4 1 6 1 5 4 3 3 2 1 Artifact . | . . . . . . . . . . . . . . Weapon 168 | 3 2 7 . 9 3 33 6 35 2 15 14 24 15 Energy Gun 7 | 3 2 1 . . . . . . . . 1 . . Energy Cannon 5 | . . . . 2 1 1 . . . 1 . . . Ballistic Gun 4 | . . . . . . . . . . . 3 1 . Ballistic Cannon 88 | . . 5 . 6 1 20 4 17 2 8 5 12 8 Launcher 7 | . . 1 . 1 1 1 . . . 1 1 . 1 Special Weapon 50 | . . . . . . 11 2 18 . 5 1 9 4 Impact Weapon . | . . . . . . . . . . . . . . Slashing Weapon . | . . . . . . . . . . . . . . Piercing Weapon . | . . . . . . . . . . . . . . Special Melee Weapon 7 | . . . . . . . . . . . 3 2 2 Unidentified Prototypes 1 | . . . . . . 1 . . . . . . . Parts Lost 62 | . . . . 6 . 11 2 1 5 4 12 3 18 Power 4 | . . . . . . . . . 1 1 . 1 1 Propulsion 14 | . . . . 3 . 2 . . 1 . 2 1 5 Utility 34 | . . . . 3 . 8 2 . 3 1 7 1 9 Weapon 10 | . . . . . . 1 . 1 . 2 3 . 3 Highest Loss Streak 18 | . . . . 3 . 3 1 1 2 2 6 3 18 To Critical Strikes . | . . . . . . . . . . . . . . Average Slot Usage (%) 85 | . 99 99 95 98 92 92 83 83 77 78 71 77 74 Engine 3 | . 14 11 9 5 . . . 5 1 4 . 2 . Core 3 | . . . . 3 7 7 6 1 4 1 5 1 . Treads 15 | . 28 21 18 16 15 17 15 15 13 12 12 13 19 Device 7 | . 14 3 10 8 15 7 14 . 3 11 4 11 10 Storage 7 | . 14 11 9 9 7 7 7 7 6 6 6 6 4 Processor 15 | . . 27 27 27 23 18 10 15 16 20 4 . . Hackware 10 | . . . . . . 13 11 14 9 6 17 24 16 Protection 4 | . . 2 2 9 7 3 . 6 6 . 5 1 4 Energy Gun 1 | . 27 7 . . . . . . . . . . . Energy Cannon 1 | . . . . 1 1 . . . . 3 2 . . Ballistic Cannon 11 | . . 14 18 16 13 12 14 13 13 7 5 8 8 Peak Build Rating 103 | 7 9 19 23 48 56 67 72 68 78 85 92 92 103 Average Rating 60 | 5 7 16 20 29 54 52 69 66 73 78 84 82 94 On Entrance 47 | . 7 8 18 23 48 56 67 65 66 72 85 64 91 Naked Turns . | . . . . . . . . . . . . . . Heaviest Build 207 | 14 29 44 49 78 78 207 188 191 198 199 199 201 201 Greatest Support 213 | 40 40 40 40 70 90 107 103 103 150 150 150 150 213 Greatest Overweight (x) 10 | 3 . 10 1 1 3 3 1 1 2 2 2 2 1 Average Overweight (x) . | . . . . 1 . . 1 1 1 1 1 1 . Largest Inventory Capacity 30 | 8 15 15 15 20 20 30 30 30 30 30 30 30 30 Average Capacity 25 | 7 10 15 15 18 20 21 30 30 30 30 30 30 29 Most Carried 30 | 6 15 15 15 20 20 30 30 30 30 30 30 30 30 Average Carried 24 | 4 9 14 14 18 19 21 29 29 25 28 29 29 28 Final Capacity 30 | 8 15 15 15 20 20 30 30 30 30 30 30 30 5 Final Carried 30 | 6 15 15 14 20 20 30 30 29 24 30 26 30 5 Class Distribution -------------------- 27% | Bothacker-Mutant 24% | Botlord-Mutant 18% | Hauler-Mutant 17% | Scavenger-Mutant 11% | Mutant Dominant Class ---------------- Mutant | -10/Materials Mutant | -9/Materials Scavenger-Mutant | -8/Materials Scavenger-Mutant | -8/Garrison Scavenger-Mutant | -7/Factory Bothacker-Mutant | -7/Garrison Bothacker-Mutant | -7/Factory Bothacker-Mutant | -7/Garrison Hauler-Mutant | -6/Factory Hauler-Mutant | -6/Garrison Botlord-Mutant | -6/Factory Botlord-Mutant | -6/Garrison Botlord-Mutant | -5/Factory Resources | -11 -10 -9 -8 -8 -7 -7 -7 -7 -6 -6 -6 -6 -5 ----------- Run | Yrd Mat Mat Mat Gar Fac Gar Fac Gar Fac Gar Fac Gar Fac Matter Collected 11291 | 280 245 609 209 1491 465 1410 419 1235 932 1097 1162 1201 536 Remotely 3093 | . . 283 134 432 166 447 151 132 592 406 297 28 25 Salvage Created 7929 | 114 281 782 176 887 265 1165 341 161 634 1061 1105 352 605 Parts 390 | 4 19 71 14 66 18 37 14 17 21 34 41 16 18 Haulers Intercepted 2 | . . 1 . . . . . . . . . . 1 Recyclers Shooed 11 | . . . . . 1 . 1 . 6 . 3 . . Parts Field Recycled . | . . . . . . . . . . . . . . Retrieved Matter . | . . . . . . . . . . . . . . Parts Self-Destructed . | . . . . . . . . . . . . . . Prevented . | . . . . . . . . . . . . . . Kills | -11 -10 -9 -8 -8 -7 -7 -7 -7 -6 -6 -6 -6 -5 ------- Run | Yrd Mat Mat Mat Gar Fac Gar Fac Gar Fac Gar Fac Gar Fac Combat Hostiles Destroyed 186 | . 6 26 5 39 7 21 8 5 18 20 15 8 8 Guns 13 | . 6 6 . . . . . . . . 1 . . Cannons 147 | . . 17 5 31 4 16 8 5 18 17 11 8 7 AOE 26 | . . 3 . 8 3 5 . . . 3 3 . 1 Classes Destroyed 19 | 2 4 4 1 2 . 2 . . 1 1 1 1 . Worker 6 | . . . 2 . 2 . 1 . . . 1 . . Builder 3 | . . 2 1 . . . . . . . . . . Tunneler 2 | 2 . . . . . . . . . . . . . Hauler 2 | . . 1 . . . . . . . . . . 1 Recycler 11 | 1 . 2 1 . 1 . 1 . 1 . 4 . . Mechanic 1 | . . . . . . . . . . . 1 . . Operator 5 | . 1 1 . . 2 . . . . . 1 . . Watcher 6 | . 1 2 1 . 1 . 1 . . . . . . Swarmer 69 | . 2 14 3 21 3 8 . 1 1 13 3 . . Cutter 4 | . . . . . . 3 . 1 . . . . . Grunt 59 | . 4 6 2 7 1 3 6 1 14 2 4 3 6 Brawler 11 | . . 1 . 1 1 2 . . . 2 3 . 1 Duelist 6 | . . . . . . 3 . . . . 3 . . Sentry 20 | . . 5 . 7 1 1 . . 1 1 1 2 1 Specialist 3 | . . . . 2 . . . 1 . . . . . Hunter 5 | . . . . . . . . . 2 1 . 2 . Programmer 10 | . . . . 1 1 1 2 2 . 1 2 . . Behemoth 1 | . . . . . . . . . . . . 1 . Striker 1 | . . . . . . . . . . 1 . . . Best Kill Streak 10 | 3 5 8 10 8 4 7 4 1 10 4 5 5 3 Combat Bots Only 9 | . 4 7 3 8 4 7 3 1 9 4 3 5 3 Max Kills in Single Turn 3 | 1 1 2 2 3 2 2 1 1 1 3 3 1 2 Gunslinging 1 | . . 1 . . . . . . . . . . . Exploded 3 | . . 1 . 3 2 2 . . . 3 2 . 1 Melee . | . . . . . . . . . . . . . . Uniques/NPCs Destroyed . | . . . . . . . . . . . . . . Combat | -11 -10 -9 -8 -8 -7 -7 -7 -7 -6 -6 -6 -6 -5 -------- Run | Yrd Mat Mat Mat Gar Fac Gar Fac Gar Fac Gar Fac Gar Fac Hostile Shots Fired 1730 | . 45 81 18 250 59 165 38 153 157 138 251 151 224 Missed 493 | . 15 22 4 80 22 36 11 56 34 42 72 41 58 Damage Taken 18003 | . 359 654 127 1791 353 2261 424 889 2041 1190 3259 1610 3045 Core 2558 | . 63 145 17 195 31 200 136 57 134 190 240 144 1006 Absorbed by Shields 914 | . . . 16 324 . 50 . 38 . 98 . 99 289 Reduced by Siege Mode 363 | . . . . . 4 13 . . 130 . 11 205 . Ignored by Resistances 264 | . . . . . . 38 . 126 . . . . 100 Regen/Repaired (Parts) 640 | . . 164 . . . . . . 476 . . . . Core Remaining (%) 58 | 100 74 63 . 61 . . . 39 . . . 16 . Volleys Fired 657 | 10 22 56 17 98 23 93 21 53 53 67 61 44 39 Largest 2 | 2 2 2 2 2 2 2 2 2 2 2 2 2 2 Hottest 158 | 90 90 115 88 128 155 114 114 114 105 158 158 122 122 Shots Fired 1083 | 20 44 104 34 165 41 123 41 71 106 100 101 72 61 Gun 126 | 20 44 34 . . . . . . . . 28 . . Cannon 853 | . . 65 34 161 39 105 38 37 106 97 68 58 45 Launcher 26 | . . 5 . 4 2 5 . . . 3 4 . 3 Special 78 | . . . . . . 13 3 34 . . 1 14 13 Kinetic 763 | . . 65 34 133 34 68 38 37 106 64 81 58 45 Thermal 204 | 20 32 34 . 28 5 37 . . . 33 15 . . Explosive 26 | . . 5 . 4 2 5 . . . 3 4 . 3 Electromagnetic 12 | . 12 . . . . . . . . . . . . Robot Hit Streak 27 | 4 10 10 14 24 14 20 11 11 13 27 11 22 9 Robot Miss Streak 7 | 2 4 3 3 5 5 4 3 3 5 7 5 2 2 Penetration Max 1 | . . . . . 1 1 1 . 1 . . . 1 Secondary Targets 2 | . . 2 . . . . . . . . . . . Max Gunslinging Chain 1 | . . 1 . . . . . . . . . . . Shots Hit Robots 796 | 12 26 65 24 113 37 94 24 44 85 80 81 65 46 Core Hits 530 | 4 12 47 11 80 26 58 9 9 95 87 49 12 31 Critical Kills 19 | . . . . . . 1 . . . 3 . 7 8 Critical Parts Destroyed 24 | . . . . . . . . . . . . 13 11 Critical Strikes 82 | . 2 6 2 . 1 4 2 1 13 3 4 25 19 Burn 6 | . 2 4 . . . . . . . . . . . Meltdown 4 | . . . . . . 1 . . . 3 . . . Destroy 44 | . . . . . . . . . . . . 25 19 Blast 28 | . . 2 2 . 1 3 2 1 13 . 4 . . Melee Attacks 25 | . . . . . . . . . . . 10 13 2 Impact . | . . . . . . . . . . . . . . Slashing . | . . . . . . . . . . . . . . Piercing . | . . . . . . . . . . . . . . Sneak Attacks 18 | . . . . . . . . . . . 4 13 1 Combat Hostiles 2 | . . . . . . . . . . . 1 . 1 Follow-up Attacks . | . . . . . . . . . . . . . . Damage Inflicted 22401 | 150 380 1560 602 3284 1555 3150 1178 603 2488 2401 2758 595 1697 Guns 1150 | 150 331 312 . . . . . . . . 357 . . Cannons 17333 | . . 1069 602 2643 1244 2608 1014 603 2470 2228 1683 595 574 Explosions 3810 | . 48 179 . 641 311 542 164 . . 173 640 . 1112 Melee . | . . . . . . . . . . . . . . Ramming 108 | . 1 . . . . . . . 18 . 78 . 11 Kinetic 14181 | . . 1069 602 2081 1074 1444 1014 603 2470 1052 1603 595 574 Thermal 4217 | 150 246 312 . 562 170 1164 . . . 1176 437 . . Explosive 3762 | . . 179 . 641 311 542 164 . . 173 640 . 1112 Electromagnetic 133 | . 133 . . . . . . . . . . . . Impact . | . . . . . . . . . . . . . . Slashing . | . . . . . . . . . . . . . . Piercing . | . . . . . . . . . . . . . . Highest Corruption 16 | . . 6 . 1 . 9 10 10 . . 5 5 16 Average Corruption 6 | . . 5 . 1 . 4 9 10 . . 3 5 12 Corruption Purged . | . . . . . . . . . . . . . . Corruption Blocked . | . . . . . . . . . . . . . . Effects 279 | . . 22 . 3 . 49 50 93 . . 14 46 2 Message Errors 62 | . . 5 . . . 11 14 18 . . 2 11 1 Matter Fused 63 | . . 4 . 1 . 10 10 24 . . 4 10 . Heat Flow Errors 34 | . . 4 . . . 6 8 13 . . 2 1 . Energy Discharges 37 | . . 2 . 1 . 7 2 11 . . 2 12 . Parts Rejected 5 | . . . . . . . 2 1 . . 1 1 . Parts Fused 5 | . . 1 . . . . 1 1 . . . 2 . Data Loss (minor) 28 | . . 1 . . . 6 5 9 . . . 7 . Data Loss (major) 21 | . . 3 . . . 3 2 10 . . 2 1 . Misfires 14 | . . 1 . 1 . 3 4 5 . . . . . Alerts 5 | . . . . . . 1 1 1 . . 1 1 . Misdirections 1 | . . . . . . . . . . . . . 1 Weapon Failures 4 | . . 1 . . . 2 1 . . . . . . Overload Shots . | . . . . . . . . . . . . . . Overflow Damage 411 | . . . 24 95 34 66 106 . 11 34 41 . . Projectiles 339 | . . . 24 42 26 55 106 . 11 34 41 . . Explosions 72 | . . . . 53 8 11 . . . . . . . Melee . | . . . . . . . . . . . . . . Knockbacks 141 | . . 7 9 27 3 17 9 7 34 6 14 1 7 Impact 1 | . . . . . . . . . . . 1 . . Kinetic 129 | . . 6 7 26 3 17 8 7 30 6 13 1 5 Secondary 11 | . . 1 2 1 . . 1 . 4 . . . 2 Self-Inflicted Damage 404 | . 33 . . . . 71 . . . 48 247 . 5 Shots 8 | . 1 . . . . 2 . . . 1 4 . . Rammed 8 | . 1 . . . . . . . 2 . 4 . 1 Targets Rammed 9 | . 1 . . . . . . . 2 . 5 . 1 Kicked . | . . . . . . . . . . . . . . Crushed 1 | . . . . . . . . . . . 1 . . Highest Temperature 463 | 210 129 447 94 463 336 438 257 254 311 108 444 442 218 Average Temperature 89 | 89 54 66 42 109 112 89 65 71 103 28 95 231 78 Received Heat Transfer 4125 | . 153 84 25 534 93 300 90 221 861 112 346 317 989 Effects 22 | . . 1 . 10 1 1 . . . . 3 3 3 Shutdowns 1 | . . . . . . . . . . . 1 . . Energy Bleed 5 | . . . . 2 1 . . . . . 1 1 . Interference 12 | . . . . 8 . 1 . . . . . . 3 Matter Decay 3 | . . . . . . . . . . . 1 2 . Damage (minor) 1 | . . 1 . . . . . . . . . . . Siege Activations 8 | . . . . . 2 3 . . 1 . 1 1 . Total Turns 210 | . . . . . 28 68 . . 72 . 1 41 . Longest Duration 72 | . . . . . 16 44 . . 72 . 1 41 . Robots Corrupted . | . . . . . . . . . . . . . . Combat Hostiles . | . . . . . . . . . . . . . . Parts Fried . | . . . . . . . . . . . . . . Impact Corruptions . | . . . . . . . . . . . . . . Robots Melted 4 | . . . . . . 1 . . . 3 . . . Combat Hostiles . | . . . . . . . . . . . . . . Parts Melted 17 | . . 1 . . . 9 . . . 6 1 . . Heat Transferred 6607 | 385 766 1039 . 814 225 1750 . . . 1184 444 . . Parts Sabotaged 2 | . . . . . . . . . . . . . 2 Parts Stolen . | . . . . . . . . . . . . . . Parts Stripped . | . . . . . . . . . . . . . . Power Chain Reactions 1 | . 1 . . . . . . . . . . . . Alert | -11 -10 -9 -8 -8 -7 -7 -7 -7 -6 -6 -6 -6 -5 ------- Run | Yrd Mat Mat Mat Gar Fac Gar Fac Gar Fac Gar Fac Gar Fac Peak Influence 3084 | 15 221 367 323 1459 951 1967 1993 2645 1691 2817 1671 1799 3084 Initial 1478 | . 9 8 152 209 765 639 1032 1341 1388 1078 1478 1080 944 Average 1354 | 5 103 197 222 876 850 1220 1536 1785 1519 2034 1533 1390 2221 Maximum Alert Level 5 | . 1 1 1 4 3 5 5 5 5 5 5 5 5 Low Security (%) 6 | 100 95 45 46 . . . . . . . . . . Level 1 4 | . 4 54 53 7 . . . . . . . . . Level 2 3 | . . . . 19 . 5 . . . . . . . Level 3 17 | . . . . 51 100 39 3 . . 1 . 8 22 Level 4 37 | . . . . 20 . 34 49 41 63 21 88 80 5 Level 5 29 | . . . . . . 20 46 58 36 77 11 10 23 High Security 1 | . . . . . . . . . . . . . 48 Max Security . | . . . . . . . . . . . . . . Squads Dispatched 43 | . 1 1 1 . 3 . 7 . 6 . 9 . 15 Investigation 7 | . . . . . 1 . 3 . 2 . . . 1 Extermination 6 | . . . . . 1 . 2 . . . 3 . . Reinforcement 10 | . 1 1 . . . . 2 . 3 . . . 3 Assault 17 | . . . . . 1 . . . 1 . 5 . 10 Garrison 3 | . . . 1 . . . . . . . 1 . 1 Intercept . | . . . . . . . . . . . . . . Searches Triggered . | . . . . . . . . . . . . . . Construction Impeded 3 | . . . . . . . 1 . 1 . . . 1 Haulers Reinforced . | . . . . . . . . . . . . . . Active Scanning Responses . | . . . . . . . . . . . . . . Cargo Convoy Interrupts 1 | . . . . . . . . . . . 1 . . Stealth | -11 -10 -9 -8 -8 -7 -7 -7 -7 -6 -6 -6 -6 -5 --------- Run | Yrd Mat Mat Mat Gar Fac Gar Fac Gar Fac Gar Fac Gar Fac Distress Signals 13 | . 2 3 . . . . 2 . 1 . 1 . 4 Communications Jammed 9 | . . . . . . . . . 1 . . . 8 Distress Signals 8 | . . . . . . . . . . . . . 8 Times Spotted 433 | . 9 37 7 38 13 44 22 39 32 32 52 21 87 Peak Tracking Total 29 | . 5 5 3 8 5 11 4 5 6 5 10 5 29 Tactical Retreats 28 | . . 1 1 . 2 5 1 . 5 2 6 . 5 Traps | -11 -10 -9 -8 -8 -7 -7 -7 -7 -6 -6 -6 -6 -5 ------- Run | Yrd Mat Mat Mat Gar Fac Gar Fac Gar Fac Gar Fac Gar Fac Traps Triggered 38 | . . 8 . 7 . 1 2 7 1 4 2 6 . Indirectly . | . . . . . . . . . . . . . . Trap Hack Attempts . | . . . . . . . . . . . . . . Triggered . | . . . . . . . . . . . . . . Disarmed . | . . . . . . . . . . . . . . Reprogrammed . | . . . . . . . . . . . . . . Reused . | . . . . . . . . . . . . . . Traps Extracted . | . . . . . . . . . . . . . . Installed . | . . . . . . . . . . . . . . Triggered 2 | . . . . . . . . . . . 2 . . Machines | -11 -10 -9 -8 -8 -7 -7 -7 -7 -6 -6 -6 -6 -5 ---------- Run | Yrd Mat Mat Mat Gar Fac Gar Fac Gar Fac Gar Fac Gar Fac Machines Disabled 84 | . 1 2 . 1 . 7 29 5 . 11 4 3 21 Max in Single Turn 4 | . 1 2 . 1 . 1 3 1 . 2 4 1 . Garrison Access 1 | . . . . . . . . . . . . . 1 Garrison Relay 18 | . . . . . . 6 . 6 . 3 . 3 . Phase Generator 1 | . . . . . . . . . . 1 . . . Machines Repaired . | . . . . . . . . . . . . . . Machines Dismantled 20 | . . . . . . 6 . 4 . 7 . 3 . Machines Sabotaged . | . . . . . . . . . . . . . . Overloaded Fab Kills . | . . . . . . . . . . . . . . Hacking | -11 -10 -9 -8 -8 -7 -7 -7 -7 -6 -6 -6 -6 -5 --------- Run | Yrd Mat Mat Mat Gar Fac Gar Fac Gar Fac Gar Fac Gar Fac Machines Accessed 50 | . 4 7 1 2 5 3 11 3 4 2 6 1 1 Terminals 34 | . 4 5 . 2 2 3 8 3 1 2 3 1 . Fabricators 3 | . . . . . 1 . 1 . . . 1 . . Repair Stations 5 | . . 1 . . . . . . 2 . 1 . 1 Recycling Units 1 | . . 1 . . . . . . . . . . . Scanalyzers 2 | . . . . . 1 . 1 . . . . . . Garrison Access 5 | . . . 1 . 1 . 1 . 1 . 1 . . Total Hacks 122 | . 14 27 3 3 13 4 25 4 8 5 13 1 2 Successful 52 | . 7 15 1 2 5 1 6 2 4 1 7 1 . Failed 68 | . 6 11 2 1 8 3 19 2 4 4 6 . 2 Catastrophic 15 | . 2 3 . 1 . . 5 . . . 3 . 1 Database Lockouts 2 | . 1 1 . . . . . . . . . . . Manual 25 | . 9 6 . 1 5 . 1 . . . 3 . . Terminals 86 | . 14 21 . 3 5 4 18 4 1 5 10 1 . Fabricators 5 | . . . . . 2 . 2 . . . 1 . . Repair Stations 14 | . . 5 . . . . . . 6 . 1 . 2 Recycling Units 1 | . . 1 . . . . . . . . . . . Scanalyzers 9 | . . . . . 5 . 4 . . . . . . Garrison Access 7 | . . . 3 . 1 . 1 . 1 . 1 . . Terminal Hacks 34 | . 7 11 . 2 1 1 3 2 . 1 5 1 . Record 3 | . . 3 . . . . . . . . . . . Part Schematic 2 | . 2 . . . . . . . . . . . . Robot Schematic 1 | . . . . . . . 1 . . . . . . Robot Analysis 3 | . . 1 . . 1 . . . . . 1 . . Open Door 3 | . . . . . . 1 . 1 . . . 1 . Branch Access Points 2 | . . 1 . . . . 1 . . . . . . Emergency Access Points 4 | . . 1 . 1 . . . 1 . 1 . . . Terminal Index 1 | . . . . . . . 1 . . . . . . Garrison Index 1 | . . . . . . . . . . . 1 . . Alert Level 1 | . . 1 . . . . . . . . . . . Unreport Threat 1 | . . 1 . . . . . . . . . . . Locate Traps 1 | . . . . . . . . . . . 1 . . Dispatch Records 1 | . 1 . . . . . . . . . . . . Maintenance Status 1 | . 1 . . . . . . . . . . . . Surveillance Status 1 | . . . . . . . . . . . 1 . . Hauler Manifests 2 | . 1 1 . . . . . . . . . . . Registered Components 1 | . . 1 . . . . . . . . . . . Registered Prototypes 1 | . 1 . . . . . . . . . . . . Zone Layout 3 | . 1 1 . . . . . . . . 1 . . Garrison Registry 1 | . . . . 1 . . . . . . . . . Fabricator Hacks 1 | . . . . . . . . . . . 1 . . Network Status 1 | . . . . . . . . . . . 1 . . Repair Station Hacks 7 | . . 4 . . . . . . 3 . . . . Scan Component 4 | . . 2 . . . . . . 2 . . . . Repair 3 | . . 2 . . . . . . 1 . . . . Recycling Unit Hacks . | . . . . . . . . . . . . . . Scanalyzer 5 | . . . . . 3 . 2 . . . . . . Insert Component 3 | . . . . . 2 . 1 . . . . . . Analyze 2 | . . . . . 1 . 1 . . . . . . Garrison Access Hacks 5 | . . . 1 . 1 . 1 . 1 . 1 . . Unlock Access 5 | . . . 1 . 1 . 1 . 1 . 1 . . Unauthorized Hacks . | . . . . . . . . . . . . . . Terminals . | . . . . . . . . . . . . . . Fabricators . | . . . . . . . . . . . . . . Repair Stations . | . . . . . . . . . . . . . . Recycling Units . | . . . . . . . . . . . . . . Scanalyzers . | . . . . . . . . . . . . . . Garrison Access . | . . . . . . . . . . . . . . Data Cores Recovered 3 | . . . . . 2 . . . . . 1 . . Used . | . . . . . . . . . . . . . . Hacking Detections 43 | . 4 7 . 1 4 2 11 2 3 2 6 . 1 Full Trace Events 8 | . . . . . 1 . 3 . 2 1 . . 1 Feedback Events 1 | . . . . . . . 1 . . . . . . Corruption 1 | . . . . . . . 1 . . . . . . Feedback Blocked . | . . . . . . . . . . . . . . Robot Schematics Acquired 1 | . . . . . . . 1 . . . . . . Robots Built . | . . . . . . . . . . . . . . Authchips . | . . . . . . . . . . . . . . Time . | . . . . . . . . . . . . . . Total Robot Build Rating . | . . . . . . . . . . . . . . Part Schematics Acquired 3 | . 2 . . . 1 . . . . . . . . Parts Built . | . . . . . . . . . . . . . . Authchips . | . . . . . . . . . . . . . . Time . | . . . . . . . . . . . . . . Total Part Build Rating . | . . . . . . . . . . . . . . Parts Repaired 3 | . . 2 . . . . . . 1 . . . . Time 83 | . . 52 . . . . . . 31 . . . . Parts Recycled . | . . . . . . . . . . . . . . Recycled Matter . | . . . . . . . . . . . . . . Retrieved Matter . | . . . . . . . . . . . . . . Retrieved Components . | . . . . . . . . . . . . . . Parts Scanalyzed 3 | . . . . . 2 . 1 . . . . . . Part Schematics Acquired 1 | . . . . . 1 . . . . . . . . Parts Damaged . | . . . . . . . . . . . . . . Bothacking | -11 -10 -9 -8 -8 -7 -7 -7 -7 -6 -6 -6 -6 -5 ------------ Run | Yrd Mat Mat Mat Gar Fac Gar Fac Gar Fac Gar Fac Gar Fac Used RIF Installer 6 | . . . . 2 . 1 . 1 . 1 . 1 . Coupler Efficiency 1 | . . . . . . . . . . . . 1 . Signal Jammer 1 | . . . . . . 1 . . . . . . . Robot Detection 1 | . . . . . . . . . . 1 . . . Watcher Feeds 1 | . . . . . . . . 1 . . . . . Structural Interface 1 | . . . . 1 . . . . . . . . . Robots Hacked 57 | . . . . . . 10 1 18 . . 9 10 9 Non-combat 3 | . . . . . . . . . . . 2 . 1 Combat 54 | . . . . . . 10 1 18 . . 7 10 8 Robot Hacks Applied 63 | . . . . . . 10 1 21 . . 10 12 9 parse_system 3 | . . . . . . . . 2 . . . 1 . no_distress 1 | . . . . . . . . . . . 1 . . ignore_repairs 1 | . . . . . . . . . . . 1 . . drop_inventory 1 | . . . . . . . . . . . 1 . . find_recycling 1 | . . . . . . . . . . . . . 1 spike_heat 1 | . . . . . . . . 1 . . . . . overload_power 1 | . . . . . . . . . . . . . 1 amplify_resonance 1 | . . . . . . . . . . . . . 1 wipe_record 1 | . . . . . . . . . . . . 1 . reboot_system 5 | . . . . . . . . 2 . . 1 2 . overwrite_iff 13 | . . . . . . 3 . 6 . . 1 . 3 streamctrl_high 2 | . . . . . . . . 1 . . . 1 . formatsys_high 32 | . . . . . . 7 1 9 . . 5 7 3 Relay Couplers Released 79 | . . . . 3 . 28 . 23 . 11 . 12 2 Machine Destruction 72 | . . . . . . 24 . 23 . 11 . 12 2 Programmers 7 | . . . . 3 . 4 . . . . . . . Attached 35 | . . . . . . 8 1 11 . . 4 7 4 Fabnet Peak Effective % . | . . . . . . . . . . . . . . Robots Rewired 24 | . . . . 3 . 9 . 3 . 2 . 6 1 Allies Hacked 4 | . . . . . . 1 1 2 . . . . . Hacks Repelled . | . . . . . . . . . . . . . . Allies | -11 -10 -9 -8 -8 -7 -7 -7 -7 -6 -6 -6 -6 -5 -------- Run | Yrd Mat Mat Mat Gar Fac Gar Fac Gar Fac Gar Fac Gar Fac Total Allies 80 | . . . . 3 . 22 4 19 . 3 6 16 7 Largest Group 11 | . . . . 3 . 11 9 6 1 2 2 6 7 Highest-Rated Group 470 | . . . . 72 . 198 203 112 32 198 67 441 470 Highest-Rated Ally 148 | . . . . 24 . 62 39 32 32 99 47 148 148 Total Orders 1 | . . . . . . . . . . . 1 . . STAY 1 | . . . . . . . . . . . 1 . . Ally Attacks 587 | . . . . 7 . 85 147 111 3 33 23 44 134 Total Damage 14906 | . . . . 135 . 1548 1749 2604 104 1056 646 1928 5136 Kills 128 | . . . . 1 . 9 20 25 1 11 1 12 48 Allies Corrupted 2 | . . . . . . . 1 1 . . . . . Allies Melted 2 | . . . . . . 1 . 1 . . . . . Intel | -11 -10 -9 -8 -8 -7 -7 -7 -7 -6 -6 -6 -6 -5 ------- Run | Yrd Mat Mat Mat Gar Fac Gar Fac Gar Fac Gar Fac Gar Fac Robot Analysis Total 3 | . . 1 . . 1 . . . . . 1 . . Derelict Logs Recovered . | . . . . . . . . . . . . . . Drone Launches . | . . . . . . . . . . . . . . Drone Recoveries . | . . . . . . . . . . . . . . Exploration | -11 -10 -9 -8 -8 -7 -7 -7 -7 -6 -6 -6 -6 -5 ------------- Run | Yrd Mat Mat Mat Gar Fac Gar Fac Gar Fac Gar Fac Gar Fac Turns Passed 18431 | 132 441 1077 189 2274 765 2389 1482 2532 832 2431 1255 2014 618 Spaces Moved 6954 | 52 216 494 72 792 405 936 583 916 261 864 405 696 262 Core 41 | 13 . 1 . . . . . . . . . . 27 Treads 6913 | 39 216 493 72 792 405 936 583 916 261 864 405 696 235 Legs . | . . . . . . . . . . . . . . Wheels . | . . . . . . . . . . . . . . Hover . | . . . . . . . . . . . . . . Flight . | . . . . . . . . . . . . . . Fastest Speed 50 | 50 160 160 160 240 160 160 240 240 240 240 240 240 50 Average Speed 217 | 163 160 162 180 240 160 193 240 240 240 240 240 240 172 Slowest Speed 550 | 200 160 550 240 240 400 400 240 240 320 320 320 320 236 Overloaded Moves . | . . . . . . . . . . . . . . Propulsion Burnouts . | . . . . . . . . . . . . . . Robots Hopped . | . . . . . . . . . . . . . . Cave-ins Triggered 1 | . . . . . . 1 . . . . . . . Exploration Rate (%) 41 | 4 43 41 6 64 11 96 24 95 10 91 12 68 14 Regions Visited 13 Branch Regions . Pre-discovered Areas . | . . . . . . . . . . . . . . Known Exits Taken 6 | . . 1 1 . 1 . 1 . 1 . 1 . . Unknown Exits Taken 2 | 1 1 . . . . . . . . . . . . Scrap Searched . | . . . . . . . . . . . . . . Spaces Dug 5 | . . 1 . . . . 1 3 . . . . . Terrain Destroyed 353 | . 3 29 4 5 23 21 48 11 9 114 57 2 27 Melee . | . . . . . . . . . . . . . . Projectile 87 | . . 12 4 . 7 14 14 11 9 2 13 1 . AOE 265 | . 3 17 . 5 16 7 34 . . 112 44 . 27 Terrain Rammed . | . . . . . . . . . . . . . . Walls Destroyed . | . . . . . . . . . . . . . . Machines Disabled . | . . . . . . . . . . . . . . Actions | -11 -10 -9 -8 -8 -7 -7 -7 -7 -6 -6 -6 -6 -5 --------- Run | Yrd Mat Mat Mat Gar Fac Gar Fac Gar Fac Gar Fac Gar Fac Total 9073 | 75 268 681 98 1011 483 1357 632 1165 356 1056 574 947 370 Wait 374 | . 3 45 3 29 21 98 . 20 13 4 36 88 14 Move 6936 | 51 215 493 71 790 404 934 582 914 260 862 404 694 262 Hop . | . . . . . . . . . . . . . . Pick Up 176 | 6 13 25 2 21 11 25 4 10 3 16 10 22 8 Fast Attach 90 | 7 2 3 . 4 1 12 4 9 4 15 10 13 6 Attach 68 | . . 4 2 5 4 11 2 6 6 5 10 4 9 Detach 30 | . 1 . . 1 . 3 2 4 3 6 6 1 3 Swap 250 | 1 4 27 2 23 8 46 10 42 7 19 15 30 16 Drop 176 | . 7 28 1 25 11 22 7 10 5 24 6 21 9 Fire 657 | 10 22 56 17 98 23 93 21 53 53 67 61 44 39 Melee 25 | . . . . . . . . . . . 10 13 2 Ram 1 | . . . . . . . . . . . . . 1 Kick . | . . . . . . . . . . . . . . Crush 8 | . 1 . . . . . . . 2 . 5 . . Escape Stasis 30 | . . . . 6 . 2 . 12 . 4 . 6 . Rewire 182 | . . . . 9 . 93 . 73 . 3 1 2 1 Trap . | . . . . . . . . . . . . . . Miscellaneous 70 | . . . . . . 18 . 12 . 31 . 9 . Route ------- -11/Scrapyard -10/Materials -9/Materials (discovered 3 exits: *Mat / *Min x2) -8/Materials -8/Garrison (discovered 4 exits: *Fac x3 / [Mat]) -7/Factory (discovered 2 exits: *Fac / Gar) -7/Garrison (discovered 3 exits: *Fac x3) -7/Factory (discovered 6 exits: *Fac / Sto x2 / Low x2 / Gar) -7/Garrison (discovered 4 exits: *Fac x3 / *Fac) -6/Factory (discovered 2 exits: [*Low] / Gar) -6/Garrison (discovered 3 exits: *Fac x3) -6/Factory (discovered 2 exits: [*Low] / Gar) -6/Garrison (discovered 2 exits: *Fac x2) -5/Factory (discovered 1 exit: [*Upp]) History --------- Turn | Location | Event 27 | -11/Scrapyard | Discovered new exit (range 16) 133 | -11/Scrapyard | Entered Materials 252 | -10/Materials | Central database locked down 330 | -10/Materials | Build established: Mutant 564 | -10/Materials | Discovered new exit (range 7) 574 | -10/Materials | Entered another Materials area 574 | -9/Materials | Evolved 2 slots: Utility x2 666 | -9/Materials | Discovered new exit (range 11) 871 | -9/Materials | Discovered new exit (range 16) 1152 | -9/Materials | Identified exit to Mines 1231 | -9/Materials | Repaired Lgt. Treads 1260 | -9/Materials | Repaired Lgt. Treads 1417 | -9/Materials | Central database locked down 1563 | -9/Materials | Discovered new exit (range 5) 1587 | -9/Materials | Identified exit to Materials 1602 | -9/Materials | Destroyed 7 combat bots 1651 | -9/Materials | Entered another Materials area 1651 | -8/Materials | Evolved 2 slots: Utility x2 1775 | -8/Materials | Garrison activated, responded to threat 1838 | -8/Materials | Identified exit to Garrison 1840 | -8/Materials | Entered Garrison 1944 | -8/Garrison | Triggered checkpoint 2038 | -8/Garrison | Destroyed 8 combat bots 2064 | -8/Garrison | Triggered checkpoint 2398 | -8/Garrison | Triggered checkpoint 2454 | -8/Garrison | Triggered checkpoint 2681 | -8/Garrison | Installed Relay Interface Framework 2730 | -8/Garrison | Triggered checkpoint 2837 | -8/Garrison | Build established: Scavenger-Mutant 2914 | -8/Garrison | Triggered checkpoint 2953 | -8/Garrison | Lost 3 allies 2975 | -8/Garrison | Destroyed 7 combat bots 2984 | -8/Garrison | Lost 3 parts (1n2u) 3002 | -8/Garrison | Discovered new exit (range 15) 3035 | -8/Garrison | Identified exit to Factory 3298 | -8/Garrison | Triggered checkpoint 3330 | -8/Garrison | Triggered checkpoint 3352 | -8/Garrison | Discovered exit to Factory (range 34) 3352 | -8/Garrison | Discovered exit to Factory (range 60) 3352 | -8/Garrison | Discovered exit to Factory (range 22) 3352 | -8/Garrison | Discovered new exit (range 28) 3402 | -8/Garrison | Expanded RIF knowledge: Structural Interface 4114 | -8/Garrison | Entered Factory 4114 | -7/Factory | Evolved 2 slots: Propulsion x1, Utility x1 4514 | -7/Factory | First assault squad dispatched 4612 | -7/Factory | Discovered new exit (range 15) 4684 | -7/Factory | Identified exit to Factory 4877 | -7/Factory | Identified exit to Garrison 4879 | -7/Factory | Entered Garrison 4944 | -7/Garrison | Found embedded Infiltrators 4979 | -7/Garrison | Triggered checkpoint 5019 | -7/Garrison | Garrison Relay disabled 5095 | -7/Garrison | Triggered checkpoint 5274 | -7/Garrison | Lost 7 allies 5288 | -7/Garrison | Lost 3 parts (3u) 5292 | -7/Garrison | Destroyed 7 combat bots 5307 | -7/Garrison | Triggered checkpoint 5439 | -7/Garrison | Triggered checkpoint 5514 | -7/Garrison | Garrison Relay disabled 5562 | -7/Garrison | Garrison Relay disabled 5595 | -7/Garrison | Build established: Bothacker-Mutant 5623 | -7/Garrison | Discovered new exit (range 15) 5644 | -7/Garrison | Identified exit to Factory 5737 | -7/Garrison | Triggered checkpoint 5751 | -7/Garrison | Triggered checkpoint 5835 | -7/Garrison | Garrison Relay disabled 5869 | -7/Garrison | Triggered checkpoint 5957 | -7/Garrison | Discovered exit to Factory (range 10) 6325 | -7/Garrison | Expanded RIF knowledge: Signal Jamming 6379 | -7/Garrison | Garrison Relay disabled 6700 | -7/Garrison | Rescued a captive Derelict 6717 | -7/Garrison | Triggered checkpoint 6776 | -7/Garrison | Garrison Relay disabled 6878 | -7/Garrison | Crushed by falling debris 7135 | -7/Garrison | Discovered exit to Factory (range 13) 7268 | -7/Garrison | Entered Factory 7268 | -7/Factory | Accompanied by 9 allies 7482 | -7/Factory | Identified exit to Storage 7482 | -7/Factory | Identified exit to Lower Caves 7849 | -7/Factory | System corruption reached 10% 8087 | -7/Factory | Allied Derelicts emerged from ambush trap array 8347 | -7/Factory | Discovered exit to Factory (range 12) 8473 | -7/Factory | P-60 Hacker assimilated allied Trooper 4e 8627 | -7/Factory | Core integrity fell below 50% 8722 | -7/Factory | Identified exit to Garrison 8750 | -7/Factory | Entered Garrison 8750 | -7/Garrison | Accompanied by 3 allies 8997 | -7/Garrison | Triggered checkpoint 9066 | -7/Garrison | Lost 6 allies 9084 | -7/Garrison | Triggered checkpoint 9147 | -7/Garrison | Discovered new exit (range 3) 9167 | -7/Garrison | Identified exit to Factory 9380 | -7/Garrison | Triggered checkpoint 9412 | -7/Garrison | Garrison Relay disabled 9612 | -7/Garrison | Lost 3 allies 9676 | -7/Garrison | Triggered checkpoint 9844 | -7/Garrison | Triggered checkpoint 9891 | -7/Garrison | Garrison Relay disabled 9992 | -7/Garrison | Rescued a captive Derelict 10252 | -7/Garrison | Triggered checkpoint 10401 | -7/Garrison | Expanded RIF knowledge: Watcher Feeds 10449 | -7/Garrison | Discovered exit to Factory (range 2) 10676 | -7/Garrison | Triggered checkpoint 10713 | -7/Garrison | Build established: Botlord-Mutant 10716 | -7/Garrison | Triggered checkpoint 10777 | -7/Garrison | Discovered exit to Factory (range 10) 10796 | -7/Garrison | Triggered checkpoint 10945 | -7/Garrison | Garrison Relay disabled 11163 | -7/Garrison | Discovered exit to Factory (range 8) 11207 | -7/Garrison | Garrison Relay disabled 11213 | -7/Garrison | Garrison Relay disabled 11282 | -7/Garrison | Entered Factory 11282 | -6/Factory | Accompanied by 1 ally 11282 | -6/Factory | Evolved 2 slots: Propulsion x1, Utility x1 11511 | -6/Factory | Build established: Hauler-Mutant 11514 | -6/Factory | Repaired Imp. Heavy Treads 11632 | -6/Factory | First assault squad dispatched 11721 | -6/Factory | Destroyed 9 combat bots 11839 | -6/Factory | Discovered new exit (range 7) 12100 | -6/Factory | Identified exit to Garrison 12114 | -6/Factory | Entered Garrison 12160 | -6/Garrison | Triggered checkpoint 12308 | -6/Garrison | Triggered checkpoint 12345 | -6/Garrison | Phase Generator disabled 12372 | -6/Garrison | Garrison Relay disabled 12689 | -6/Garrison | Rewired Striker 12693 | -6/Garrison | Rewired Striker 12736 | -6/Garrison | Triggered checkpoint 12909 | -6/Garrison | Garrison Relay disabled 13206 | -6/Garrison | Destroyed *Clyde 13316 | -6/Garrison | Triggered checkpoint 13397 | -6/Garrison | Discovered new exit (range 10) 13722 | -6/Garrison | Rescued a captive Derelict 13800 | -6/Garrison | Garrison Relay disabled 13927 | -6/Garrison | Discovered new exit (range 10) 13946 | -6/Garrison | Expanded RIF knowledge: Robot Detection 14010 | -6/Garrison | Triggered checkpoint 14136 | -6/Garrison | Triggered checkpoint 14147 | -6/Garrison | Heavy support dispatched to Factory 14290 | -6/Garrison | H-XX Assembler disabled 14461 | -6/Garrison | Discovered new exit (range 5) 14545 | -6/Garrison | Entered Factory 14895 | -6/Factory | First assault squad dispatched 14975 | -6/Factory | Build established: Botlord-Mutant 15053 | -6/Factory | Discovered new exit (range 6) 15084 | -6/Factory | Lost 3 allies 15481 | -6/Factory | Core integrity fell below 50% 15497 | -6/Factory | Cargo convoy interrupted 15506 | -6/Factory | Garrison activated, responded to threat 15615 | -6/Factory | Lost 3 parts (3u) 15798 | -6/Factory | Identified exit to Garrison 15800 | -6/Factory | Entered Garrison 15829 | -6/Garrison | Lost 6 parts (2n3u1w) 15976 | -6/Garrison | Garrison Relay disabled 16332 | -6/Garrison | Triggered checkpoint 16353 | -6/Garrison | Triggered checkpoint 16396 | -6/Garrison | Lost 3 allies 16436 | -6/Garrison | Lost 3 parts (1p1n1u) 16656 | -6/Garrison | Garrison Relay disabled 16694 | -6/Garrison | Triggered checkpoint 16696 | -6/Garrison | Core integrity fell below 20% 16743 | -6/Garrison | Expanded RIF knowledge: Coupler Efficiency 16784 | -6/Garrison | Discovered new exit (range 2) 16805 | -6/Garrison | Found embedded Infiltrators 16980 | -6/Garrison | Triggered checkpoint 17140 | -6/Garrison | Discovered new exit (range 9) 17247 | -6/Garrison | Lost 3 allies 17356 | -6/Garrison | Spotted B-75 Beast 17393 | -6/Garrison | Destroyed B-75 Beast 17468 | -6/Garrison | Rewired B-90 Cyclops 17488 | -6/Garrison | Rewired B-86 Titan 17589 | -6/Garrison | Garrison Relay disabled 17618 | -6/Garrison | Triggered checkpoint 17814 | -6/Garrison | Entered Factory 17814 | -5/Factory | Accompanied by 6 allies 17814 | -5/Factory | Evolved 2 slots: Propulsion x2 18114 | -5/Factory | First assault squad dispatched 18131 | -5/Factory | High security lockdown imminent 18211 | -5/Factory | High security lockdown engaged 18269 | -5/Factory | Lost 6 allies 18313 | -5/Factory | Spotted B-75 Beast 18417 | -5/Factory | Core integrity fell below 50% 18418 | -5/Factory | System corruption reached 10% 18424 | -5/Factory | Discovered new exit (range 18) 18428 | -5/Factory | Core integrity fell below 20% 18432 | -5/Factory | Destroyed by G-50 Soldier with Heavy Laser Last Messages --------------- 18419_ 8LC9UWR#W2Q#Q/ZOV%R|OW#NG: 18419_ Acquired Relay Coupler [NC]. 18420_ >> Watcher Feeds: Established visual feed link with W-25 Informer. 18422_ Critical hit (Burn: +37). 18422_ Matter Pump disabled. 18422_ I-47 Archangel distress signal jammed. 18424_ EXIT=FOUND 18424_ I-47 Archangel distress signal jammed. 18426_ W-25 Informer distress signal jammed. 18427_ I-47 Archangel distress signal jammed. 18428_ Matter Pump disabled. 18428_ I-47 Archangel distress signal jammed. 18428_ Critical hit (Burn: +50). 18430_ Detecting nearby Garrison Access. 18432_ >> Watcher Feeds: Feed link from W-25 Informer lost. 18432_ Slammed into G-67 Veteran. Map ----- +----------------------------------------------------+ | ?????????????????????????????????????????????????? | | ?????????????????????????????????????????????????? | | ?????????????????????????????????????????????????? | | ?????????????????????????????????????????????????? | | ?????????????????????????????????????????????????? | | ?????????????????????????????????????????????????? | | ???????????? ??? ??????????????????????????????? | | ???????????? ? ??????????????????????????????? | | ???????????? ? ??????????????????????????????? | | ???????????? ? ??????????????????????????????? | | ???????????# ? #?????????????????????????????? | | ???????????# ? #?????????????????????????????? | | ???????????# #?????????????????????????????? | | ?########### #?????????????????????????????? | | ? +?????????????????????????????? | | ? ? #?????????????????????????????? | | ?" """" """" #?????????????????????????????? | | "" """" """" #?????????????????????????????? | | "" """" """" #?????????????????????????????? | | #?????????????????????????????? | | "" """" """" #?????????????????????????????? | | "" """" """""" #?????????????????????????????? | | "" """" """"%%" #?????????????????????????????? | | """"" #?????????##??????????????????? | | Y" ######## ### ??? | | %= """ g@gg< ??? | | /[% ###gg ### ??? | | =! #????##??????????????????? | | ## g #????????????????????????? | | ?# g g g #????????????????????????? | | #= %%" =!p """ ""% """#????????????????????????? | | # !"""b=!e """ ""% T"#????????????????????????? | | #* "%% ! %"" """ """#????????????????????????? | | #!*! #????????????????????????? | | ]!!=% #????????????????????????? | | %]!|"############"" ####????????????????????????? | | [=%! #??????????### #???????????????????????????? | | !![!!#????????????####???????????????????????????? | | !!]"!#########???????????????????????????????????? | | !#!##! ????????????????????????????????????? | | ##*## """" ????????????????????????????????????? | | # = # """" #???????????????????????????????????? | | !% + """" #???????????????????????????????????? | | #%= # [ """" #???????????????????????????????????? | | ## ## """" ????????????????????????????????????? | | ?#%#? """"?????????????????????????????????????? | | ## #?! """"?????????????????????????????????????? | | # #?? ?????????????????????????????????????? | | # #??#######????????????????????????????????????? | | #"#?????????????????????????????????????????????? | +----------------------------------------------------+ Best States ------------- Heat Dissipation 59 Coolant Potential 65 Energy Generation 23 Energy Capacity 340 Matter Stores 440 Matter Capacity 450 Sight Range 22 Terrain Scan Density 10 Jamming Range 14 Additional Mass Support 12 Corruption Block 20 Armor Coverage 600 Resistance: KI 30 Resistance: EM 25 Phase Shifting 15 Evasion (%) 55 Targeting Accuracy 14 Target Analysis 5 Core Analysis 6 Recoil Reduction 12 Kinecelleration 40 Offensive Hacking 14 Relay Coupler Types 4 Relay Coupler Value 128 Item Schematics ----------------- Huge Storage Unit | -10/Materials | Hacked Hcp. Storage Unit | -10/Materials | Hacked Adv. Hacking Suite | -7/Factory | Scanalyzed Robot Schematics ------------------ L-41 Fighter | -7/Factory | Hacked Fabricated ------------ Nothing Alien Tech Used ----------------- None Achievements -------------- None Challenges ------------ None Game ------ Seed ExplosiveGodRigger Manual? 0 Play Time 03:18:53 Cumulative 126.8 hours Start 2024.11.23 @ 18:14:29 End 2024.11.23 @ 21:43:43 Sessions 1 Manual Loads 0 Difficulty Rogue Special Mode None Game No. 115 Rogue 115 Adventurer 0 Explorer 0 Win Type - Total 3 Types 3/0/0/0/0/0/0/0/0 Lore% 53 Gallery% 55 Achievement% 47 Wizard Run 0 Options --------- Layout 1 ASCII 0 Keyboard 1 Movement Arrows Keybinds 0 Fullscreen 0 Font 20/SmallcapsGlow Map View 50x35 Zoom Use 0% Tactical HUD 1 Map Filters NONE Filters NONE Steam 1 RUN: a90d8405-5714-44c8-a3e6-63e3a1860092